{"text_format":"1","workbook":"xlsx","n_sheets":14,"sheets":["Obecne","Ciselnik","A1","A2","A3","A4","A5 - polozky","A5","B1","B2","B3 - polozky","B3","C","Export do EPO2"],"not_rendered":{"charts":0,"images":1,"macros":1,"external_links":0,"defined_names":0,"comments":4,"pivot_tables":0},"unopened":[],"bounds":{"document_bytes":16777216,"sheet_cells":100000,"rows_first":2000,"rows_last":500,"rows_between":2000,"halvings":0,"cell_chars":16384,"cell_head_chars":4096},"cells_cut":0,"cells_raw":0,"read":"whole","date_system":"1900"}

{"sheet":"Obecne","index":0,"n_rows":37,"n_cols":3,"rows_kept":37,"cut":false,"hidden":false,"merged":[]}
[null,"Podání kontrolního hlášení DPH platné od 1.1.2016"]
[null," "]
[null,"Informace o hlášení"]
[]
[null,"Finanční úřad (viz list Ciselnik)",2602]
[null,"Územní finanční orgán (viz list Ciselnik)",457]
[null,"DIČ (zadává se bez CZ)",88353427]
[null,"Měsíc (ponechte prazdné, pokud jste čtvrtletní plátce)",1]
[null,"Čtvrtletí (ponechte prazdné, pokud jste měsíční plátce)"]
[null,"Rok",2016]
[null,"Datum vyhotovení","2016-01-01"]
[null,"Číslo jednací výzvy "]
[]
[null,"Informace o subjektu - Právnická osoba"]
[]
[null,"Obchodní jméno právnické osoby","Firma Fictionala s.r.o."]
[null,"Ulice (nebo část obce)","Václavské náměstí"]
[null,"Číslo popisné",1]
[null,"Číslo orientační"]
[null,"Obec","Praha 1"]
[null,"PSČ",11000]
[null,"Stát","ČESKÁ REPUBLIKA"]
[null,"Telefon","+420 220 000 000"]
[null,"Email","info@firmafictionala.cz"]
[null,"ID datové schránky","IDdschr"]
[]
[null,"Fyzická osoba oprávněná k podpisu"]
[]
[null,"Příjmení","Podepsala"]
[null,"Jméno","Cecilka"]
[null,"Vztah k právnické osobě","účetní"]
[]
[null,"Sestavil"]
[]
[null,"Příjmení","Sestavil"]
[null,"Jméno","Alois"]
[null,"Telefon","+420 220 123 456"]

{"sheet":"Ciselnik","index":1,"n_rows":223,"n_cols":3,"rows_kept":223,"cut":false,"hidden":false,"merged":[]}
["Finanční úřad","Územní finanční orgán","Úplný název pracoviště ÚFO"]
[null,451,"Finanční úřad pro hlavní město Prahu "]
[2001,451,"Územní pracoviště pro Prahu 1 "]
[2002,451,"Územní pracoviště pro Prahu 2 "]
[2003,451,"Územní pracoviště pro Prahu 3 "]
[2004,451,"Územní pracoviště pro Prahu 4 "]
[2005,451,"Územní pracoviště pro Prahu 5 "]
[2006,451,"Územní pracoviště pro Prahu 6 "]
[2007,451,"Územní pracoviště pro Prahu 7 "]
[2008,451,"Územní pracoviště pro Prahu 8 "]
[2009,451,"Územní pracoviště pro Prahu 9 "]
[2010,451,"Územní pracoviště pro Prahu 10 "]
[2011,451,"Územní pracoviště pro Prahu - Jižní Město "]
[2012,451,"Územní pracoviště v Praze - Modřanech "]
[null,452,"Finanční úřad pro Středočeský kraj  "]
[2101,452,"Územní pracoviště Praha – východ "]
[2102,452,"Územní pracoviště Praha – západ "]
[2103,452,"Územní pracoviště v Benešově "]
[2104,452,"Územní pracoviště v Berouně "]
[2105,452,"Územní pracoviště v Brandýse nad Labem - Staré Boleslavi "]
[2106,452,"Územní pracoviště v Čáslavi "]
[2107,452,"Územní pracoviště v Českém Brodě "]
[2108,452,"Územní pracoviště v Dobříši "]
[2109,452,"Územní pracoviště v Hořovicích "]
[2110,452,"Územní pracoviště v Kladně "]
[2111,452,"Územní pracoviště v Kolíně "]
[2112,452,"Územní pracoviště v Kralupech nad Vltavou "]
[2113,452,"Územní pracoviště v Kutné Hoře "]
[2114,452,"Územní pracoviště v Mělníce "]
[2115,452,"Územní pracoviště v Mladé Boleslavi "]
[2116,452,"Územní pracoviště v Mnichově Hradišti "]
[2117,452,"Územní pracoviště v Neratovicích "]
[2118,452,"Územní pracoviště v Nymburku "]
[2119,452,"Územní pracoviště v Poděbradech "]
[2120,452,"Územní pracoviště v Příbrami "]
[2121,452,"Územní pracoviště v Rakovníku "]
[2122,452,"Územní pracoviště v Říčanech "]
[2123,452,"Územní pracoviště v Sedlčanech "]
[2124,452,"Územní pracoviště ve Slaném "]
[2125,452,"Územní pracoviště ve Vlašimi "]
[2126,452,"Územní pracoviště ve Voticích "]
[null,453,"Finanční úřad pro Jihočeský kraj"]
[2201,453,"Územní pracoviště v Českých Budějovicích "]
[2202,453,"Územní pracoviště v Blatné "]
[2203,453,"Územní pracoviště v Českém Krumlově "]
[2204,453,"Územní pracoviště v Dačicích "]
[2205,453,"Územní pracoviště v Jindřichově Hradci "]
[2206,453,"Územní pracoviště v Kaplici "]
[2207,453,"Územní pracoviště v Milevsku "]
[2208,453,"Územní pracoviště v Písku "]
[2209,453,"Územní pracoviště v Prachaticích "]
[2210,453,"Územní pracoviště v Soběslavi "]
[2211,453,"Územní pracoviště ve Strakonicích "]
[2212,453,"Územní pracoviště v Táboře "]
[2213,453,"Územní pracoviště v Trhových Svinech "]
[2214,453,"Územní pracoviště v Třeboni "]
[2215,453,"Územní pracoviště v Týně nad Vltavou "]
[2216,453,"Územní pracoviště ve Vimperku "]
[2217,453,"Územní pracoviště ve Vodňanech "]
[null,454,"Finanční úřad pro Plzeňský kraj"]
[2301,454,"Územní pracoviště v Plzni "]
[2302,454,"Územní pracoviště Plzeň - sever "]
[2303,454,"Územní pracoviště Plzeň - jih "]
[2304,454,"Územní pracoviště v Blovicích "]
[2305,454,"Územní pracoviště v Domažlicích "]
[2306,454,"Územní pracoviště v Horažďovicích "]
[2307,454,"Územní pracoviště v Horšovském Týně "]
[2308,454,"Územní pracoviště v Klatovech "]
[2309,454,"Územní pracoviště v Kralovicích "]
[2310,454,"Územní pracoviště v Nepomuku "]
[2311,454,"Územní pracoviště v Přešticích "]
[2312,454,"Územní pracoviště v Rokycanech "]
[2313,454,"Územní pracoviště v Tachově "]
[2314,454,"Územní pracoviště ve Stříbře "]
[2315,454,"Územní pracoviště v Sušici "]
[null,455,"Finanční úřad pro Karlovarský kraj"]
[2401,455,"Územní pracoviště v Karlových Varech "]
[2402,455,"Územní pracoviště v Aši "]
[2403,455,"Územní pracoviště v Chebu "]
[2404,455,"Územní pracoviště v Kraslicích "]
[2405,455,"Územní pracoviště v Mariánských Lázních "]
[2406,455,"Územní pracoviště v Ostrově "]
[2407,455,"Územní pracoviště v Sokolově "]
[null,456,"Finanční úřad pro Ústecký kraj"]
[2501,456,"Územní pracoviště v Ústí nad Labem "]
[2502,456,"Územní pracoviště v Bílině "]
[2503,456,"Územní pracoviště v Děčíně "]
[2504,456,"Územní pracoviště v Chomutově "]
[2505,456,"Územní pracoviště v Kadani "]
[2506,456,"Územní pracoviště v Libochovicích "]
[2507,456,"Územní pracoviště v Litoměřicích "]
[2508,456,"Územní pracoviště v Litvínově "]
[2509,456,"Územní pracoviště v Lounech "]
[2510,456,"Územní pracoviště v Mostě "]
[2511,456,"Územní pracoviště v Podbořanech "]
[2512,456,"Územní pracoviště v Roudnici nad Labem "]
[2513,456,"Územní pracoviště v Rumburku "]
[2514,456,"Územní pracoviště v Rumburku "]
[2515,456,"Územní pracoviště v Žatci "]
[null,457,"Finanční úřad pro Liberecký kraj"]
[2601,457,"Územní pracoviště v Liberci "]
[2602,457,"Územní pracoviště v České Lípě "]
[2603,457,"Územní pracoviště ve Frýdlantě "]
[2604,457,"Územní pracoviště v Jablonci nad Nisou "]
[2605,457,"Územní pracoviště v Jilemnici "]
[2606,457,"Územní pracoviště v Novém Boru "]
[2607,457,"Územní pracoviště v Semilech "]
[2608,457,"Územní pracoviště v Tanvaldě "]
[2609,457,"Územní pracoviště v Turnově "]
[2610,457,"Územní pracoviště v Železném Brodě "]
[null,458,"Finanční úřad pro Královéhradecký kraj"]
[2701,458,"Územní pracoviště v Hradci Králové "]
[2702,458,"Územní pracoviště v Broumově "]
[2703,458,"Územní pracoviště v Dobrušce "]
[2704,458,"Územní pracoviště ve Dvoře Králové nad Labem "]
[2705,458,"Územní pracoviště v Hořicích "]
[2706,458,"Územní pracoviště v Jaroměři "]
[2707,458,"Územní pracoviště v Jičíně "]
[2708,458,"Územní pracoviště v Kostelci nad Orlicí "]
[2709,458,"Územní pracoviště v Náchodě "]
[2710,458,"Územní pracoviště v Nové Pace "]
[2711,458,"Územní pracoviště v Novém Bydžově "]
[2712,458,"Územní pracoviště v Rychnově nad Kněžnou "]
[2713,458,"Územní pracoviště v Trutnově "]
[2714,458,"Územní pracoviště ve Vrchlabí "]
[null,459,"Finanční úřad pro Pardubický kraj"]
[2801,459,"Územní pracoviště v Pardubicích "]
[2802,459,"Územní pracoviště v Hlinsku "]
[2803,459,"Územní pracoviště v Holicích "]
[2804,459,"Územní pracoviště v Chrudimi "]
[2805,459,"Územní pracoviště v Litomyšli "]
[2806,459,"Územní pracoviště v Moravské Třebové "]
[2807,459,"Územní pracoviště v Přelouči "]
[2808,459,"Územní pracoviště ve Svitavách "]
[2809,459,"Územní pracoviště v Ústí nad Orlicí "]
[2810,459,"Územní pracoviště ve Vysokém Mýtě "]
[2811,459,"Územní pracoviště v Žamberku "]
[null,460,"Finanční úřad pro Kraj Vysočina"]
[2901,460,"Územní pracoviště v Jihlavě "]
[2902,460,"Územní pracoviště v Bystřici nad Pernštejnem "]
[2903,460,"Územní pracoviště v Havlíčkově Brodě "]
[2904,460,"Územní pracoviště v Humpolci "]
[2905,460,"Územní pracoviště v Chotěboři "]
[2906,460,"Územní pracoviště v Ledči nad Sázavou "]
[2907,460,"Územní pracoviště v Moravských Budějovicích "]
[2908,460,"Územní pracoviště v Náměšti nad Oslavou "]
[2909,460,"Územní pracoviště v Pacově "]
[2910,460,"Územní pracoviště v Pelhřimově "]
[2911,460,"Územní pracoviště v Telči "]
[2912,460,"Územní pracoviště v Třebíči "]
[2913,460,"Územní pracoviště ve Velkém Meziříčí "]
[2914,460,"Územní pracoviště ve Žďáru nad Sázavou "]
[null,461,"Finanční úřad pro Jihomoravský kraj"]
[3001,461,"Územní pracoviště Brno I. "]
[3002,461,"Územní pracoviště Brno II. "]
[3003,461,"Územní pracoviště Brno III. "]
[3004,461,"Územní pracoviště Brno IV. "]
[3005,461,"Územní pracoviště Brno - venkov "]
[3006,461,"Územní pracoviště v Blansku "]
[3007,461,"Územní pracoviště v Boskovicích "]
[3008,461,"Územní pracoviště v Břeclavi "]
[3009,461,"Územní pracoviště v Bučovicích "]
[3010,461,"Územní pracoviště v Hodoníně "]
[3011,461,"Územní pracoviště v Hustopečích "]
[3012,461,"Územní pracoviště v Ivančicích "]
[3013,461,"Územní pracoviště v Kyjově "]
[3014,461,"Územní pracoviště v Mikulově "]
[3015,461,"Územní pracoviště v Moravském Krumlově "]
[3016,461,"Územní pracoviště ve Slavkově u Brna "]
[3017,461,"Územní pracoviště v Tišnově "]
[3018,461,"Územní pracoviště ve Veselí nad Moravou "]
[3019,461,"Územní pracoviště ve Vyškově "]
[3020,461,"Územní pracoviště ve Znojmě "]
[null,462,"Finanční úřad pro Olomoucký kraj"]
[3101,462,"Územní pracoviště v Olomouci "]
[3102,462,"Územní pracoviště v Hranicích "]
[3103,462,"Územní pracoviště v Jeseníku "]
[3104,462,"Územní pracoviště v Konici "]
[3105,462,"Územní pracoviště v Litovli "]
[3106,462,"Územní pracoviště v Prostějově "]
[3107,462,"Územní pracoviště v Přerově "]
[3108,462,"Územní pracoviště ve Šternberku "]
[3109,462,"Územní pracoviště v Šumperku "]
[3110,462,"Územní pracoviště v Zábřehu "]
[null,463,"Finanční úřad pro Moravskoslezský kraj"]
[3201,463,"Územní pracoviště Ostrava I. "]
[3202,463,"Územní pracoviště Ostrava II. "]
[3203,463,"Územní pracoviště Ostrava III. "]
[3204,463,"Územní pracoviště v Bohumíně "]
[3205,463,"Územní pracoviště v Bruntále "]
[3206,463,"Územní pracoviště v Českém Těšíně "]
[3207,463,"Územní pracoviště ve Frýdku-Místku "]
[3208,463,"Územní pracoviště ve Frýdlantě nad Ostravicí "]
[3209,463,"Územní pracoviště ve Fulneku "]
[3210,463,"Územní pracoviště v Havířově "]
[3211,463,"Územní pracoviště v Hlučíně "]
[3212,463,"Územní pracoviště v Karviné "]
[3213,463,"Územní pracoviště v Kopřivnici "]
[3214,463,"Územní pracoviště v Krnově "]
[3215,463,"Územní pracoviště v Novém Jičíně "]
[3216,463,"Územní pracoviště v Opavě "]
[3217,463,"Územní pracoviště v Orlové "]
[3218,463,"Územní pracoviště v Třinci "]
[null,464,"Finanční úřad pro Zlínský kraj"]
[3301,464,"Územní pracoviště ve Zlíně "]
[3302,464,"Územní pracoviště v Bystřici pod Hostýnem "]
[3303,464,"Územní pracoviště v Holešově "]
[3304,464,"Územní pracoviště v Kroměříži "]
[3305,464,"Územní pracoviště v Luhačovicích "]
[3306,464,"Územní pracoviště v Otrokovicích "]
[3307,464,"Územní pracoviště v Rožnově pod Radhoštěm "]
[3308,464,"Územní pracoviště v Uherském Brodě "]
[3309,464,"Územní pracoviště v Uherském Hradišti "]
[3310,464,"Územní pracoviště ve Valašském Meziříčí "]
[3311,464,"Územní pracoviště ve Valašských Kloboukách "]
[3312,464,"Územní pracoviště ve Vsetíně "]
[4000,13,"Specializovaný finanční úřad"]
[4030,13,"Územní pracoviště v Brně "]
[4022,13,"Územní pracoviště v Českých Budějovicích "]
[4027,13,"Územní pracoviště v Hradci Králové "]
[4032,13,"Územní pracoviště v Ostravě "]
[4023,13,"Územní pracoviště v Plzni "]
[4025,13,"Územní pracoviště v Ústí nad Labem "]

{"sheet":"A1","index":2,"n_rows":6,"n_cols":5,"rows_kept":6,"cut":false,"hidden":false,"merged":[]}
["A. Plnění, u kterých je plátce povinen přiznat daň a uskutečněná plnění v režimu přenesení daňové povinnosti"]
["A.1. Uskutečněná zdanitelná plnění v režimu přenesení daňové povinnosti, u kterých je povinen přiznat daň příjemce plnění podle § 92a"]
[]
["DIČ odběratele","Ev. číslo daňového dokladu","DUZP","Základ daně","Kód předmětu plnění"]
[88353427,"VF100001","2016-01-01",1000,4]
[88353516,"VF100002","2016-01-20",2000,4]

{"sheet":"A2","index":3,"n_rows":5,"n_cols":10,"rows_kept":5,"cut":false,"hidden":false,"merged":[]}
["A. Plnění, u kterých je plátce povinen přiznat daň a uskutečněná plnění v režimu přenesení daňové povinnosti"]
["A.2. Přijatá zdanitelná plnění, u kterých je povinen přiznat daň příjemce dle § 108 odst. 1 písm. b) a c) (§ 24, § 25)"]
[]
["Kód státu dodavatele","VAT ID dodavatele","Ev. číslo daňového dokladu","DPPD","Základ daně 1","Daň 1","Základ daně 2","Daň 2","Základ daně 3","Daň 3"]
["IE","1234567X","FP1547001","2016-01-02",1000,150,0,0,0,0]

{"sheet":"A3","index":4,"n_rows":8,"n_cols":8,"rows_kept":8,"cut":false,"hidden":false,"merged":[[3,7,4,7],[3,0,4,0],[3,1,4,1],[3,2,3,4],[3,5,4,5],[3,6,4,6]]}
["A. Plnění, u kterých je plátce povinen přiznat daň a uskutečněná plnění v režimu přenesení daňové povinnosti"]
["A.3. Uskutečněná plnění ve zvláštním režimu pro investiční zlato podle § 101c odst. 1 písm. c) bod 2"]
[]
["Kód státu odběratele","VAT ID odběratele","Odběratel bez DIČ/VAT ID",null,null,"Ev. číslo daňového dokladu","DUP","Hodnota osvoboz. plnění"]
[null,null,"Jméno a příjmení / obchodní jméno","Datum narození","Místo pobytu / sídlo"]
["SK",1234567891,null,null,null,"FVSK000001","2016-01-03",1000]
["SK",1234567892,null,null,null,"FVSK000002","2016-01-04",2000]
["SK",null,"Fero Lakatos","1966-01-01","U kovosrotu 14\n112 24 Zilina","FVSK000003","2016-01-05",3000]

{"sheet":"A4","index":5,"n_rows":5,"n_cols":11,"rows_kept":5,"cut":false,"hidden":false,"merged":[]}
["A. Plnění, u kterých je plátce povinen přiznat daň a uskutečněná plnění v režimu přenesení daňové povinnosti"]
["A.4. Uskutečněná zdanitelná plnění a přijaté úplaty s povinností přiznat daň dle § 108 odst. 1 písm. a) s hodnotou nad 10.000,- Kč včetně daně a všechny provedené opravy podle § 44 bez ohledu na limit"]
[]
["DIČ odběratele\n(uvádí se bez CZ)","Ev. číslo daňového dokladu","DPPD","Základ daně 1","Daň 1","Základ daně 2","Daň 2","Základ daně 3","Daň 3","Kód režimu plnění","§ 44 ZDPH\n(A nebo N)"]
[9105272693,"FVA400001","2016-01-06",10000,2100,10000,1500,0,0,0,"N"]

{"sheet":"A5 - polozky","index":6,"n_rows":6,"n_cols":13,"rows_kept":6,"cut":false,"hidden":false,"merged":[]}
["A. Plnění, u kterých je plátce povinen přiznat daň a uskutečněná plnění v režimu přenesení daňové povinnosti",null,null,null,null,null,null,null,null,null,null,null,"Číselník"]
["A.5. Ostatní uskutečněná zdanitelná plnění a přijaté úplaty s povinností přiznat daň dle § 108 odst. 1 písm. a) s hodnotou do 10.000,- Kč včetně daně, nebo plnění, u nichž nevznikla povinnost vystavit daňový doklad"]
["Není potřeba vyplňovat podrobně, pokud máte již finální součet položek pro A5, je možné zadat pouze jeden řádek, kde bude suma položek Základ daně 1, Daň 1, Základ daně 2, Daň 2, Základ daně 3 a Daň 3 ",null,null,null,null,null,null,null,null,null,null,null,"A"]
[null,null,null,null,null,null,null,null,null,null,null,null,"N"]
["Základ daně 1","Daň 1","Základ daně 2","Daň 2","Základ daně 3","Daň 3"]
[1000,210,10000,1500,0,0]

{"sheet":"A5","index":7,"n_rows":5,"n_cols":6,"rows_kept":5,"cut":false,"hidden":false,"merged":[]}
["A. Plnění, u kterých je plátce povinen přiznat daň a uskutečněná plnění v režimu přenesení daňové povinnosti"]
["A.5. Ostatní uskutečněná zdanitelná plnění a přijaté úplaty s povinností přiznat daň dle § 108 odst. 1 písm. a) s hodnotou do 10.000,- Kč včetně daně, nebo plnění, u nichž nevznikla povinnost vystavit daňový doklad"]
[]
["Základ daně 1","Daň 1","Základ daně 2","Daň 2","Základ daně 3","Daň 3"]
[{"$f":"SUM('A5 - polozky'!A6:A1048576)","v":1000},{"$f":"SUM('A5 - polozky'!B6:B1048576)","v":210},{"$f":"SUM('A5 - polozky'!C6:C1048576)","v":10000},{"$f":"SUM('A5 - polozky'!D6:D1048576)","v":1500},{"$f":"SUM('A5 - polozky'!E6:E1048576)","v":0},{"$f":"SUM('A5 - polozky'!F6:F1048576)","v":0}]

{"sheet":"B1","index":8,"n_rows":5,"n_cols":10,"rows_kept":5,"cut":false,"hidden":false,"merged":[]}
["B. Přijatá zdanitelná plnění s místem plnění v tuzemsku"]
["B.1. Přijatá zdanitelná plnění v režimu přenesení daňové povinnosti, u kterých je povinen přiznat daň příjemce podle § 92a"]
[]
["DIČ dodavatele","Ev. číslo daňového dokladu","DPPD","Základ daně 1","Daň 1","Základ daně 2","Daň 2","Základ daně 3","Daň 3","Kód režimu plnění"]
[9105272693,"FPB1000001","2016-01-07",100000,21000,0,0,0,0,4]

{"sheet":"B2","index":9,"n_rows":5,"n_cols":11,"rows_kept":5,"cut":false,"hidden":false,"merged":[]}
["B. Přijatá zdanitelná plnění s místem plnění v tuzemsku"]
["B.2. Přijatá zdanitelná plnění a poskytnuté úplaty, u kterých příjemce uplatňuje nárok na odpočet daně dle § 73 odst. 1 písm. a) s hodnotou nad 10.000,- Kč včetně daně a všechny přijaté opravy podle § 44 bez ohledu na limit"]
[]
["DIČ dodavatele","Ev. číslo daňového dokladu","DPPD","Základ daně 1","Daň 1","Základ daně 2","Daň 2","Základ daně 3","Daň 3","Použít poměr\n(A nebo N)","§ 44 ZDPH\n(A nebo N)"]
[6904192592,"FPB2000002","2012-01-09",10000,2100,0,0,0,0,"N","N"]

{"sheet":"B3 - polozky","index":10,"n_rows":6,"n_cols":6,"rows_kept":6,"cut":false,"hidden":false,"merged":[]}
["B. Přijatá zdanitelná plnění s místem plnění v tuzemsku"]
["B.3. Přijatá zdanitelná plnění a poskytnuté úplaty, u kterých příjemce uplatňuje nárok na odpočet daně dle § 73 odst. 1 písm. a) s hodnotou do 10.000,- Kč včetně daně"]
["Není potřeba vyplňovat podrobně, pokud máte již finální součet položek pro A5, je možné zadat pouze jeden řádek, kde bude suma položek Základ daně 1, Daň 1, Základ daně 2, Daň 2, Základ daně 3 a Daň 3 "]
[]
["Základ daně 1","Daň 1","Základ daně 2","Daň 2","Základ daně 3","Daň 3"]
[1000,210,100,15,0,0]

{"sheet":"B3","index":11,"n_rows":5,"n_cols":6,"rows_kept":5,"cut":false,"hidden":false,"merged":[]}
["B. Přijatá zdanitelná plnění s místem plnění v tuzemsku"]
["B.3. Přijatá zdanitelná plnění a poskytnuté úplaty, u kterých příjemce uplatňuje nárok na odpočet daně dle § 73 odst. 1 písm. a) s hodnotou do 10.000,- Kč včetně daně"]
[]
["Základ daně 1","Daň 1","Základ daně 2","Daň 2","Základ daně 3","Daň 3"]
[{"$f":"SUM('B3 - polozky'!A6:A1048576)","v":1000},{"$f":"SUM('B3 - polozky'!B6:B1048576)","v":210},{"$f":"SUM('B3 - polozky'!C6:C1048576)","v":100},{"$f":"SUM('B3 - polozky'!D6:D1048576)","v":15},{"$f":"SUM('B3 - polozky'!E6:E1048576)","v":0},{"$f":"SUM('B3 - polozky'!F6:F1048576)","v":0}]

{"sheet":"C","index":12,"n_rows":10,"n_cols":2,"rows_kept":10,"cut":false,"hidden":false,"merged":[]}
["C. Kontrolní řádky na Daňové přiznání k DPH (DaP)"]
[]
["A.4. + A.5. celkem základy daně u základní sazby DPH",{"$f":"SUM('A4'!D5:D1048576)+'A5'!A5","v":11000}]
["A.4. + A.5. celkem základy daně u první snížené a druhé snížené sazby DPH",{"$f":"SUM('A4'!F5:F1048576)+SUM('A4'!H5:H1048576)+'A5'!C5+'A5'!E5","v":20000}]
["B.2. + B.3. celkem základy daně u základní sazby DPH",{"$f":"SUM('B2'!D5:D1048576)+'B3'!A5","v":11000}]
["B.2. + B.3. celkem základy daně u první snížené a druhé snížené sazby DPH",{"$f":"SUM('B2'!F5:F1048576)+SUM('B2'!H5:H1048576)+'B3'!C5+'B3'!E5","v":100}]
["A.1 celkem základy daně",{"$f":"SUM('A1'!D5:D1048576)","v":3000}]
["B.1 celkem základy daně u základní sazby DPH",{"$f":"SUM('B1'!D5:D1048576)","v":100000}]
["B.1 celkem základy daně u první snížené a druhé snížené sazby DPH",{"$f":"SUM('B1'!F5:F1048576)+SUM('B1'!H5:H1048576)","v":0}]
["A.2 celkem základy daně",{"$f":"SUM('A2'!E5:E1048576)+SUM('A2'!G5:G1048576)+SUM('A2'!I5:I1048576)","v":1000}]

{"sheet":"Export do EPO2","index":13,"n_rows":12,"n_cols":6,"rows_kept":12,"cut":false,"hidden":false,"merged":[]}
[]
[]
[]
[]
[]
[]
[]
[]
[]
[]
[null,"Pro fukčnost tohoto tlačítka je nutné povolit makra "]
[null,"Návod na povolení maker můžete najít zde",null,null,null,"http://bit.do/povolit-makra-excel"]